[Event "*** Titled Tuesday Blitz"]
[Site "Chess.com"]
[Date "2021.03.09"]
[Round "6"]
[White "Gerodot71"]
[Black "ikhasu"]
[Result "1-0"]
[WhiteElo "2578"]
[BlackElo "2395"]
[TimeControl "180+1"]
[EndTime "11:12:39 PST"]
[Termination "Gerodot71 won by checkmate"]

1. d4 {[%clk 0:03:00.9]} 1... Nf6 {[%clk 0:02:58.7]} 2. c4 {[%clk 0:03:01.3]}
2... c5 {[%clk 0:02:58.6]} 3. d5 {[%clk 0:03:01.1]} 3... b5 {[%clk 0:02:58.5]}
4. cxb5 {[%clk 0:03:02]} 4... a6 {[%clk 0:02:58.6]} 5. bxa6 {[%clk 0:03:02.4]}
5... Bxa6 {[%clk 0:02:56.8]} 6. Nc3 {[%clk 0:03:02.6]} 6... g6 {[%clk
0:02:56.8]} 7. e4 {[%clk 0:03:02.8]} 7... Bxf1 {[%clk 0:02:56.3]} 8. Kxf1 {[%clk
0:03:03.7]} 8... d6 {[%clk 0:02:56.9]} 9. g3 {[%clk 0:03:04.1]} 9... Bg7 {[%clk
0:02:57.6]} 10. Kg2 {[%clk 0:03:04.5]} 10... O-O {[%clk 0:02:58.2]} 11. Nf3
{[%clk 0:03:05]} 11... Qb6 {[%clk 0:02:57.9]} 12. Qc2 {[%clk 0:03:02.4]} 12...
Na6 {[%clk 0:02:56.4]} 13. Bf4 {[%clk 0:02:52.7]} 13... Rfb8 {[%clk 0:02:50.8]}
14. Rhb1 {[%clk 0:02:38]} 14... Nd7 {[%clk 0:02:37.3]} 15. Qe2 {[%clk
0:02:27.8]} 15... Qa5 {[%clk 0:02:01.2]} 16. e5 {[%clk 0:02:06.2]} 16... dxe5
{[%clk 0:01:43.6]} 17. Nxe5 {[%clk 0:02:07.1]} 17... Nxe5 {[%clk 0:01:42.1]} 18.
Bxe5 {[%clk 0:02:08]} 18... Bxe5 {[%clk 0:01:38.7]} 19. Qxe5 {[%clk 0:02:07.9]}
19... Rb7 {[%clk 0:01:39.2]} 20. Ne4 {[%clk 0:01:54.3]} 20... Rab8 {[%clk
0:01:29.8]} 21. b3 {[%clk 0:01:17.6]} 21... c4 {[%clk 0:01:17.7]} 22. Qd4 {[%clk
0:01:07.6]} 22... cxb3 {[%clk 0:01:04]} 23. axb3 {[%clk 0:01:07.5]} 23... Qb4
{[%clk 0:01:04.4]} 24. Qe3 {[%clk 0:01:03.2]} 24... Nc7 {[%clk 0:01:00.5]} 25.
d6 {[%clk 0:01:03.4]} 25... Nd5 {[%clk 0:01:00.2]} 26. Qf3 {[%clk 0:01:02.3]}
26... f5 {[%clk 0:00:54.5]} 27. Ng5 {[%clk 0:00:49]} 27... Qxd6 {[%clk
0:00:53.5]} 28. Rd1 {[%clk 0:00:42.5]} 28... e6 {[%clk 0:00:53.4]} 29. Rd3
{[%clk 0:00:40.9]} 29... Qe7 {[%clk 0:00:50.2]} 30. h4 {[%clk 0:00:38.6]} 30...
Nf6 {[%clk 0:00:47.7]} 31. Re1 {[%clk 0:00:35.7]} 31... e5 {[%clk 0:00:46.4]}
32. Qd1 {[%clk 0:00:25.2]} 32... e4 {[%clk 0:00:38.3]} 33. Rc3 {[%clk
0:00:24.4]} 33... Rd7 {[%clk 0:00:37.1]} 34. Qc2 {[%clk 0:00:22.5]} 34... h6
{[%clk 0:00:35.2]} 35. Nh3 {[%clk 0:00:22]} 35... Ng4 {[%clk 0:00:29]} 36. Nf4
{[%clk 0:00:21.8]} 36... Qf6 {[%clk 0:00:24]} 37. Rc6 {[%clk 0:00:20.7]} 37...
Rd6 {[%clk 0:00:22.5]} 38. Qc4+ {[%clk 0:00:20.6]} 38... Kh8 {[%clk 0:00:21.2]}
39. Rxd6 {[%clk 0:00:16.4]} 39... Qxd6 {[%clk 0:00:21.1]} 40. Qf7 {[%clk
0:00:16.8]} 40... Ne5 {[%clk 0:00:20.4]} 41. Qa7 {[%clk 0:00:13.1]} 41... Rxb3
{[%clk 0:00:11.5]} 42. Qa5 {[%clk 0:00:12.7]} 42... Rb8 {[%clk 0:00:10.8]} 43.
Qxe5+ {[%clk 0:00:11.9]} 43... Qxe5 {[%clk 0:00:11.3]} 44. Nxg6+ {[%clk
0:00:12.3]} 44... Kg7 {[%clk 0:00:11.5]} 45. Nxe5 {[%clk 0:00:13.2]} 45... Kf6
{[%clk 0:00:11.9]} 46. Nc4 {[%clk 0:00:13.5]} 46... Rb4 {[%clk 0:00:11.9]} 47.
Ne3 {[%clk 0:00:13.7]} 47... Rb2 {[%clk 0:00:11.9]} 48. Kg1 {[%clk 0:00:13.8]}
48... Ke5 {[%clk 0:00:11.5]} 49. Rd1 {[%clk 0:00:13.7]} 49... Re2 {[%clk
0:00:11.3]} 50. Rd5+ {[%clk 0:00:13.4]} 50... Ke6 {[%clk 0:00:11.9]} 51. Ra5
{[%clk 0:00:12.9]} 51... Rb2 {[%clk 0:00:11.4]} 52. Nxf5 {[%clk 0:00:12.6]}
52... h5 {[%clk 0:00:09.5]} 53. Ne3 {[%clk 0:00:12.5]} 53... Re2 {[%clk
0:00:09.2]} 54. Rxh5 {[%clk 0:00:12.2]} 54... Re1+ {[%clk 0:00:09.1]} 55. Kg2
{[%clk 0:00:12.4]} 55... Rb1 {[%clk 0:00:10]} 56. Rg5 {[%clk 0:00:11.5]} 56...
Kf6 {[%clk 0:00:10.3]} 57. Rg4 {[%clk 0:00:10.3]} 57... Rb5 {[%clk 0:00:09.2]}
58. Rf4+ {[%clk 0:00:11.2]} 58... Kg6 {[%clk 0:00:09.2]} 59. g4 {[%clk 0:00:11]}
59... Rc5 {[%clk 0:00:09.1]} 60. h5+ {[%clk 0:00:11]} 60... Kh6 {[%clk
0:00:09.1]} 61. Rxe4 {[%clk 0:00:11.1]} 61... Rg5 {[%clk 0:00:09.1]} 62. Kg3
{[%clk 0:00:10.8]} 62... Kh7 {[%clk 0:00:09.3]} 63. Re6 {[%clk 0:00:10.2]} 63...
Kh8 {[%clk 0:00:08.3]} 64. Nf5 {[%clk 0:00:10.3]} 64... Kh7 {[%clk 0:00:08.2]}
65. Kh4 {[%clk 0:00:09.8]} 65... Rg8 {[%clk 0:00:07.3]} 66. g5 {[%clk
0:00:09.9]} 66... Rf8 {[%clk 0:00:06.2]} 67. g6+ {[%clk 0:00:10]} 67... Kg8
{[%clk 0:00:06]} 68. Kg5 {[%clk 0:00:09.8]} 68... Rb8 {[%clk 0:00:03.7]} 69. h6
{[%clk 0:00:09.9]} 69... Rb7 {[%clk 0:00:02.5]} 70. Re8# {[%clk 0:00:09.3]} 1-0

[Event "*** Titled Tuesday Blitz"]
[Site "Chess.com"]
[Date "2021.03.09"]
[Round "6"]
[White "GMKrikor"]
[Black "bsnsun"]
[Result "1-0"]
[WhiteElo "2708"]
[BlackElo "2455"]
[TimeControl "180+1"]
[EndTime "11:12:40 PST"]
[Termination "GMKrikor won by resignation"]

1. Nf3 {[%clk 0:03:00.9]} 1... d5 {[%clk 0:02:57.4]} 2. c4 {[%clk 0:03:00.3]}
2... c6 {[%clk 0:02:57.3]} 3. e3 {[%clk 0:02:58.5]} 3... Nf6 {[%clk 0:02:57.2]}
4. Nc3 {[%clk 0:02:58.1]} 4... Bf5 {[%clk 0:02:56.6]} 5. cxd5 {[%clk 0:02:56.2]}
5... cxd5 {[%clk 0:02:56.1]} 6. Qb3 {[%clk 0:02:56.8]} 6... Qb6 {[%clk
0:02:33.8]} 7. Nxd5 {[%clk 0:02:55.5]} 7... Nxd5 {[%clk 0:02:27.4]} 8. Qxd5
{[%clk 0:02:54.6]} 8... e6 {[%clk 0:02:27.6]} 9. Qb5+ {[%clk 0:02:53.6]} 9...
Nc6 {[%clk 0:02:22.6]} 10. Nd4 {[%clk 0:02:28.9]} 10... Be4 {[%clk 0:02:03]} 11.
f3 {[%clk 0:02:21.4]} 11... Bd5 {[%clk 0:02:02.3]} 12. Qxb6 {[%clk 0:02:13.2]}
12... axb6 {[%clk 0:02:01.4]} 13. Nb5 {[%clk 0:02:13.9]} 13... Rxa2 {[%clk
0:01:49.2]} 14. Rxa2 {[%clk 0:01:48.3]} 14... Bxa2 {[%clk 0:01:50.1]} 15. d4
{[%clk 0:01:43.1]} 15... Bb4+ {[%clk 0:01:49.2]} 16. Bd2 {[%clk 0:01:42.9]}
16... Kd7 {[%clk 0:01:45.8]} 17. Bd3 {[%clk 0:01:41.4]} 17... Bb3 {[%clk
0:01:38.2]} 18. Ke2 {[%clk 0:01:37.2]} 18... Ra8 {[%clk 0:01:31.9]} 19. Rc1
{[%clk 0:01:33.9]} 19... Bxd2 {[%clk 0:00:59.6]} 20. Kxd2 {[%clk 0:01:34.2]}
20... Rc8 {[%clk 0:00:59.7]} 21. h4 {[%clk 0:01:24.3]} 21... e5 {[%clk
0:00:55.5]} 22. Bf5+ {[%clk 0:00:58.2]} 22... Be6 {[%clk 0:00:53.6]} 23. Bxe6+
{[%clk 0:00:51.2]} 23... Kxe6 {[%clk 0:00:52]} 24. dxe5 {[%clk 0:00:51.5]} 24...
Kxe5 {[%clk 0:00:51.6]} 25. Ke2 {[%clk 0:00:42.7]} 25... Rd8 {[%clk 0:00:49.5]}
26. Nc3 {[%clk 0:00:40.8]} 26... f5 {[%clk 0:00:44.6]} 27. Na4 {[%clk
0:00:35.7]} 27... b5 {[%clk 0:00:27.8]} 28. Nc5 {[%clk 0:00:32.1]} 28... Na5
{[%clk 0:00:24]} 29. Nd3+ {[%clk 0:00:29.2]} 29... Kf6 {[%clk 0:00:24.3]} 30.
Rc5 {[%clk 0:00:25.9]} 30... Nc4 {[%clk 0:00:22.2]} 31. b3 {[%clk 0:00:13.8]}
31... Nd6 {[%clk 0:00:21.9]} 32. Rd5 {[%clk 0:00:13]} 32... b6 {[%clk
0:00:21.6]} 33. h5 {[%clk 0:00:11.9]} 33... Ke6 {[%clk 0:00:21.8]} 34. Nf4+
{[%clk 0:00:12.3]} 34... Kf6 {[%clk 0:00:22.2]} 35. Kd3 {[%clk 0:00:12.6]} 35...
b4 {[%clk 0:00:21]} 36. g3 {[%clk 0:00:10.5]} 36... g5 {[%clk 0:00:21.2]} 37.
hxg6 {[%clk 0:00:09.9]} 37... hxg6 {[%clk 0:00:22.1]} 38. Ne2 {[%clk 0:00:10.2]}
38... Ke6 {[%clk 0:00:21.9]} 39. Nf4+ {[%clk 0:00:10.6]} 39... Kf6 {[%clk
0:00:22.3]} 40. Rd4 {[%clk 0:00:09.6]} 40... Ke5 {[%clk 0:00:19.1]} 41. Nxg6+
{[%clk 0:00:09.1]} 41... Kf6 {[%clk 0:00:19.6]} 42. Nf4 {[%clk 0:00:10]} 42...
Ke5 {[%clk 0:00:19.1]} 43. Rd5+ {[%clk 0:00:09.5]} 43... Kf6 {[%clk 0:00:18.9]}
44. Ke2 {[%clk 0:00:08.3]} 44... b5 {[%clk 0:00:16.9]} 45. Nd3 {[%clk
0:00:08.2]} 45... Ke6 {[%clk 0:00:15.4]} 46. Nf4+ {[%clk 0:00:08.7]} 46... Kf6
{[%clk 0:00:15.3]} 47. Nd3 {[%clk 0:00:09.6]} 47... Ke6 {[%clk 0:00:15.7]} 48.
Rc5 {[%clk 0:00:08.9]} 48... Rg8 {[%clk 0:00:15.8]} 49. Nf4+ {[%clk 0:00:09]}
49... Kf6 {[%clk 0:00:13.9]} 50. Rd5 {[%clk 0:00:09.4]} 50... Ke7 {[%clk
0:00:13.5]} 51. Kd3 {[%clk 0:00:08.1]} 51... Rxg3 {[%clk 0:00:13]} 52. Re5+
{[%clk 0:00:08.5]} 52... Kd7 {[%clk 0:00:12.7]} 53. Ke2 {[%clk 0:00:06.3]} 53...
Rg1 {[%clk 0:00:12.8]} 54. Nd3 {[%clk 0:00:06.2]} 54... Rb1 {[%clk 0:00:12.2]}
55. Kd2 {[%clk 0:00:06.6]} 55... Rxb3 {[%clk 0:00:11.7]} 56. Nc5+ {[%clk
0:00:06.9]} 56... Kc7 {[%clk 0:00:11.2]} 57. Re7+ {[%clk 0:00:05.3]} 57... Kd8
{[%clk 0:00:10.4]} 58. Rd7+ {[%clk 0:00:05.1]} 58... Kc8 {[%clk 0:00:10.8]} 59.
Rxd6 {[%clk 0:00:05.6]} 59... Rb2+ {[%clk 0:00:11.3]} 60. Kd3 {[%clk 0:00:05.5]}
60... Rb1 {[%clk 0:00:11.7]} 61. Rb6 {[%clk 0:00:05.6]} 61... Kc7 {[%clk
0:00:10.8]} 62. Rxb5 {[%clk 0:00:03.3]} 62... Kc6 {[%clk 0:00:11.2]} 63. Rxb4
{[%clk 0:00:03.9]} 63... Rxb4 {[%clk 0:00:10.2]} 64. Ne6 {[%clk 0:00:04.5]}
64... Kd6 {[%clk 0:00:08.6]} 65. Nd4 {[%clk 0:00:04.8]} 65... Ke5 {[%clk
0:00:08.8]} 66. f4+ {[%clk 0:00:05.1]} 66... Kf6 {[%clk 0:00:09.1]} 67. Kc3
{[%clk 0:00:05.8]} 67... Ra4 {[%clk 0:00:09.1]} 68. Kb3 {[%clk 0:00:06.4]} 68...
Ra1 {[%clk 0:00:09.2]} 69. Kc4 {[%clk 0:00:06.7]} 69... Re1 {[%clk 0:00:08.9]}
70. Kd3 {[%clk 0:00:07.2]} 70... Ra1 {[%clk 0:00:08.8]} 71. Nc2 {[%clk
0:00:06.8]} 71... Ra5 {[%clk 0:00:08]} 72. Nb4 {[%clk 0:00:05.9]} 72... Kg6
{[%clk 0:00:08.1]} 73. Nc6 {[%clk 0:00:05.6]} 73... Rc5 {[%clk 0:00:08.1]} 74.
Nd4 {[%clk 0:00:05.3]} 74... Kh5 {[%clk 0:00:08.5]} 75. Ne6 {[%clk 0:00:03.6]}
75... Kg4 {[%clk 0:00:08.1]} 76. Nxc5 {[%clk 0:00:03.5]} 1-0

[Event "*** Titled Tuesday Blitz"]
[Site "Chess.com"]
[Date "2021.03.09"]
[Round "6"]
[White "fabianvivasz"]
[Black "cukin84"]
[Result "1/2-1/2"]
[WhiteElo "2283"]
[BlackElo "2126"]
[TimeControl "180+1"]
[EndTime "11:13:06 PST"]
[Termination "Game drawn - insufficient material"]

1. e4 {[%clk 0:03:00.9]} 1... c6 {[%clk 0:02:59.7]} 2. Nc3 {[%clk 0:02:58]} 2...
d5 {[%clk 0:02:59.8]} 3. Nf3 {[%clk 0:02:58.7]} 3... Nf6 {[%clk 0:02:56.2]} 4.
e5 {[%clk 0:02:58.3]} 4... Ne4 {[%clk 0:02:55.9]} 5. Ne2 {[%clk 0:02:58.1]} 5...
Bg4 {[%clk 0:02:54.2]} 6. Nfg1 {[%clk 0:02:43.3]} 6... Nc5 {[%clk 0:02:32.3]} 7.
d4 {[%clk 0:02:40.5]} 7... Ne6 {[%clk 0:02:32]} 8. h3 {[%clk 0:02:28]} 8... Bh5
{[%clk 0:02:31.3]} 9. g4 {[%clk 0:02:23.8]} 9... Bg6 {[%clk 0:02:29.6]} 10. Ng3
{[%clk 0:02:12.8]} 10... h5 {[%clk 0:02:28.2]} 11. gxh5 {[%clk 0:02:09.8]} 11...
Be4 {[%clk 0:02:22.7]} 12. Nxe4 {[%clk 0:02:02.8]} 12... dxe4 {[%clk 0:02:22.3]}
13. c3 {[%clk 0:02:03.3]} 13... Qb6 {[%clk 0:02:11.1]} 14. Bg2 {[%clk
0:01:56.7]} 14... Nd7 {[%clk 0:02:06.3]} 15. Bxe4 {[%clk 0:01:54.7]} 15... O-O-O
{[%clk 0:02:05.6]} 16. Qf3 {[%clk 0:01:38.3]} 16... f6 {[%clk 0:02:00.2]} 17.
Bf5 {[%clk 0:01:30]} 17... Nc7 {[%clk 0:01:52.7]} 18. e6 {[%clk 0:01:23.7]}
18... Nb8 {[%clk 0:01:49.9]} 19. Ne2 {[%clk 0:01:19.1]} 19... Nba6 {[%clk
0:01:38.8]} 20. c4 {[%clk 0:01:00.6]} 20... Qb4+ {[%clk 0:01:13.1]} 21. Qc3
{[%clk 0:00:50.2]} 21... Rxh5 {[%clk 0:01:09.9]} 22. Ng3 {[%clk 0:00:46.2]}
22... Rh4 {[%clk 0:01:00.7]} 23. Be3 {[%clk 0:00:41.9]} 23... Rdxd4 {[%clk
0:00:46.6]} 24. Bxd4 {[%clk 0:00:41.1]} 24... Rxd4 {[%clk 0:00:47.5]} 25. Qxb4
{[%clk 0:00:23.7]} 25... Nxb4 {[%clk 0:00:46.8]} 26. a3 {[%clk 0:00:22.2]} 26...
Nd3+ {[%clk 0:00:44.5]} 27. Bxd3 {[%clk 0:00:21]} 27... Rxd3 {[%clk 0:00:44.7]}
28. Rd1 {[%clk 0:00:20.8]} 28... Rxd1+ {[%clk 0:00:41.2]} 29. Kxd1 {[%clk
0:00:21.7]} 29... Nxe6 {[%clk 0:00:41.4]} 30. Re1 {[%clk 0:00:20.5]} 30... Nf4
{[%clk 0:00:36.1]} 31. h4 {[%clk 0:00:19.8]} 31... e5 {[%clk 0:00:35.9]} 32. Ne2
{[%clk 0:00:18.6]} 32... Nd3 {[%clk 0:00:34]} 33. Rf1 {[%clk 0:00:15.6]} 33...
Nxb2+ {[%clk 0:00:33.8]} 34. Kc2 {[%clk 0:00:15.3]} 34... Nxc4 {[%clk 0:00:34]}
35. a4 {[%clk 0:00:14.9]} 35... Kc7 {[%clk 0:00:31.1]} 36. h5 {[%clk 0:00:14.4]}
36... Kb6 {[%clk 0:00:28.2]} 37. Rb1+ {[%clk 0:00:12.3]} 37... Kc7 {[%clk
0:00:28.2]} 38. Ng3 {[%clk 0:00:12.6]} 38... Na3+ {[%clk 0:00:27.8]} 39. Kb2
{[%clk 0:00:12]} 39... Nxb1 {[%clk 0:00:28]} 40. Kxb1 {[%clk 0:00:12.8]} 40...
Kd6 {[%clk 0:00:27.2]} 41. Kc2 {[%clk 0:00:13.2]} 41... Ke6 {[%clk 0:00:26.6]}
42. Ne4 {[%clk 0:00:05.8]} 42... f5 {[%clk 0:00:24.9]} 43. Nd2 {[%clk
0:00:06.1]} 43... Kf6 {[%clk 0:00:23.7]} 44. Nc4 {[%clk 0:00:05.7]} 44... e4
{[%clk 0:00:20.4]} 45. Na5 {[%clk 0:00:05.5]} 45... b6 {[%clk 0:00:20]} 46. Nxc6
{[%clk 0:00:05.6]} 46... Kg5 {[%clk 0:00:19.6]} 47. Nxa7 {[%clk 0:00:05.9]}
47... Kxh5 {[%clk 0:00:19.4]} 48. Kd2 {[%clk 0:00:02.6]} 48... Bc5 {[%clk
0:00:18.2]} 49. Ke2 {[%clk 0:00:03]} 49... g5 {[%clk 0:00:16.5]} 50. Nb5 {[%clk
0:00:03.2]} 50... f4 {[%clk 0:00:15.9]} 51. Nc3 {[%clk 0:00:02.4]} 51... e3
{[%clk 0:00:16]} 52. fxe3 {[%clk 0:00:01.6]} 52... Bxe3 {[%clk 0:00:15.9]} 53.
Nd5 {[%clk 0:00:02.5]} 53... Bc5 {[%clk 0:00:14.7]} 54. Kf3 {[%clk 0:00:03.1]}
54... Kg6 {[%clk 0:00:14.4]} 55. Kg4 {[%clk 0:00:02.3]} 55... Bd4 {[%clk
0:00:13.8]} 56. Nc7 {[%clk 0:00:02.1]} 56... Bc5 {[%clk 0:00:12.8]} 57. Nb5
{[%clk 0:00:03]} 57... Bd4 {[%clk 0:00:12.5]} 58. Nc3 {[%clk 0:00:03.9]} 58...
Be3 {[%clk 0:00:13.4]} 59. Ne4 {[%clk 0:00:03.9]} 59... Bd4 {[%clk 0:00:14.3]}
60. Nd6 {[%clk 0:00:04.1]} 60... Be3 {[%clk 0:00:15.2]} 61. Ne4 {[%clk
0:00:04.5]} 61... Bc5 {[%clk 0:00:16.1]} 62. Nxg5 {[%clk 0:00:05]} 62... Be3
{[%clk 0:00:17]} 63. Ne4 {[%clk 0:00:05.1]} 63... Bc5 {[%clk 0:00:17.9]} 64. Kf3
{[%clk 0:00:05.7]} 64... Be3 {[%clk 0:00:18.8]} 65. Nc3 {[%clk 0:00:05.5]} 65...
Bc5 {[%clk 0:00:19.7]} 66. Kxf4 {[%clk 0:00:05.8]} 66... Kf6 {[%clk 0:00:19.9]}
67. Ke4 {[%clk 0:00:06.3]} 67... Ke6 {[%clk 0:00:20.2]} 68. Nd5 {[%clk
0:00:06.8]} 68... Kd6 {[%clk 0:00:20.4]} 69. Nf4 {[%clk 0:00:07]} 69... Kc6
{[%clk 0:00:20.7]} 70. Kd3 {[%clk 0:00:07.1]} 70... Bb4 {[%clk 0:00:21]} 71. Kc4
{[%clk 0:00:06.4]} 71... Ba5 {[%clk 0:00:21.4]} 72. Nd3 {[%clk 0:00:06.7]} 72...
Bd2 {[%clk 0:00:20.8]} 73. Ne5+ {[%clk 0:00:06.6]} 73... Kb7 {[%clk 0:00:20.2]}
74. Nf3 {[%clk 0:00:06.4]} 74... Ba5 {[%clk 0:00:19.8]} 75. Kb5 {[%clk
0:00:06.3]} 75... Ka7 {[%clk 0:00:19.9]} 76. Nd4 {[%clk 0:00:06.5]} 76... Kb7
{[%clk 0:00:20.2]} 77. Nc6 {[%clk 0:00:06.5]} 77... Be1 {[%clk 0:00:19.4]} 78.
Ne5 {[%clk 0:00:06.3]} 78... Ka7 {[%clk 0:00:19.4]} 79. Nc4 {[%clk 0:00:06.7]}
79... Kb7 {[%clk 0:00:19.4]} 80. Nxb6 {[%clk 0:00:06.8]} 80... Ka7 {[%clk
0:00:19.7]} 81. Nd5 {[%clk 0:00:07.1]} 81... Kb7 {[%clk 0:00:20.1]} 82. Nb6
{[%clk 0:00:07.1]} 82... Ka7 {[%clk 0:00:20.3]} 83. Nc4 {[%clk 0:00:07.8]} 83...
Kb7 {[%clk 0:00:20.4]} 84. Nb2 {[%clk 0:00:08.7]} 84... Ka7 {[%clk 0:00:20.5]}
85. Nd3 {[%clk 0:00:09.5]} 85... Bd2 {[%clk 0:00:20.1]} 86. Ne5 {[%clk
0:00:09.6]} 86... Kb7 {[%clk 0:00:20.4]} 87. Nc4 {[%clk 0:00:09.9]} 87... Be1
{[%clk 0:00:20.8]} 88. Nd6+ {[%clk 0:00:10.2]} 88... Ka7 {[%clk 0:00:21.2]} 89.
Kc4 {[%clk 0:00:10.1]} 89... Ka6 {[%clk 0:00:20.1]} 90. Nb5 {[%clk 0:00:08.4]}
90... Ka5 {[%clk 0:00:19.6]} 91. Kb3 {[%clk 0:00:08.9]} 91... Bd2 {[%clk
0:00:19]} 92. Nd6 {[%clk 0:00:08.8]} 92... Be1 {[%clk 0:00:19.1]} 93. Ne4 {[%clk
0:00:08.2]} 93... Ka6 {[%clk 0:00:18.4]} 94. Nc5+ {[%clk 0:00:08.4]} 94... Ka5
{[%clk 0:00:18.4]} 95. Nd3 {[%clk 0:00:09.3]} 95... Bd2 {[%clk 0:00:18]} 96. Nb2
{[%clk 0:00:09.7]} 96... Be1 {[%clk 0:00:17.6]} 97. Kc2 {[%clk 0:00:10.2]} 97...
Kb4 {[%clk 0:00:16.8]} 98. Nd3+ {[%clk 0:00:10.1]} 98... Kxa4 {[%clk 0:00:16.9]}
1/2-1/2

[Event "*** Titled Tuesday Blitz"]
[Site "Chess.com"]
[Date "2021.03.09"]
[Round "6"]
[White "Kurkusha"]
[Black "AldokhinIvan"]
[Result "1-0"]
[WhiteElo "2374"]
[BlackElo "2510"]
[TimeControl "180+1"]
[EndTime "11:13:18 PST"]
[Termination "Kurkusha won by resignation"]

1. Nf3 {[%clk 0:03:00.9]} 1... Nf6 {[%clk 0:02:59.8]} 2. c4 {[%clk 0:03:00.4]}
2... g6 {[%clk 0:03:00.2]} 3. g3 {[%clk 0:02:59.8]} 3... Bg7 {[%clk 0:03:00.9]}
4. Bg2 {[%clk 0:03:00.1]} 4... O-O {[%clk 0:03:01.8]} 5. O-O {[%clk 0:02:59.8]}
5... Nc6 {[%clk 0:03:02.7]} 6. d4 {[%clk 0:03:00]} 6... d6 {[%clk 0:03:03]} 7.
Nc3 {[%clk 0:03:00.1]} 7... Bf5 {[%clk 0:03:01.7]} 8. Bf4 {[%clk 0:02:55.8]}
8... Ne4 {[%clk 0:03:00.8]} 9. Nxe4 {[%clk 0:02:45.3]} 9... Bxe4 {[%clk
0:03:00.7]} 10. Qb3 {[%clk 0:02:42.2]} 10... Nxd4 {[%clk 0:02:43.1]} 11. Nxd4
{[%clk 0:02:40.9]} 11... Bxg2 {[%clk 0:02:43.2]} 12. Kxg2 {[%clk 0:02:41.2]}
12... Bxd4 {[%clk 0:02:43.1]} 13. Rfd1 {[%clk 0:02:35.4]} 13... e5 {[%clk
0:02:30.1]} 14. Bh6 {[%clk 0:02:34.2]} 14... Re8 {[%clk 0:02:29.7]} 15. e3
{[%clk 0:02:31.7]} 15... Bb6 {[%clk 0:02:27.6]} 16. Qc3 {[%clk 0:02:30]} 16...
Qd7 {[%clk 0:02:21.6]} 17. b4 {[%clk 0:02:14.3]} 17... a5 {[%clk 0:02:02.8]} 18.
a3 {[%clk 0:02:09.7]} 18... axb4 {[%clk 0:02:01.5]} 19. axb4 {[%clk 0:02:10.6]}
19... Qc6+ {[%clk 0:01:59.8]} 20. Kg1 {[%clk 0:02:10.1]} 20... Qf3 {[%clk
0:01:37.5]} 21. c5 {[%clk 0:02:01.3]} 21... Ra2 {[%clk 0:01:25.9]} 22. Rf1
{[%clk 0:01:51]} 22... Rxa1 {[%clk 0:01:23.1]} 23. Rxa1 {[%clk 0:01:51.5]} 23...
Qh5 {[%clk 0:01:06.5]} 24. cxb6 {[%clk 0:01:48.7]} 24... cxb6 {[%clk 0:01:05.9]}
25. Qc7 {[%clk 0:01:43.5]} 25... Qxh6 {[%clk 0:01:03.1]} 26. Qxd6 {[%clk
0:01:43.5]} 26... Qf8 {[%clk 0:00:59.6]} 27. Qxb6 {[%clk 0:01:42.5]} 27... Qe7
{[%clk 0:00:59.6]} 28. Ra7 {[%clk 0:01:40.7]} 28... Rb8 {[%clk 0:00:57]} 29. h4
{[%clk 0:01:27.5]} 29... h5 {[%clk 0:00:56.5]} 30. Kg2 {[%clk 0:01:23.7]} 30...
Kg7 {[%clk 0:00:56.2]} 31. Qb5 {[%clk 0:01:22.3]} 31... Qc7 {[%clk 0:00:40.4]}
32. Ra5 {[%clk 0:01:02.5]} 32... Kf6 {[%clk 0:00:39.7]} 33. f4 {[%clk
0:00:48.7]} 33... exf4 {[%clk 0:00:25.2]} 34. gxf4 {[%clk 0:00:33.9]} 34... Qc6+
{[%clk 0:00:17.5]} 35. Kg3 {[%clk 0:00:32.6]} 35... Qe6 {[%clk 0:00:12]} 36.
Qg5+ {[%clk 0:00:26.5]} 36... Kg7 {[%clk 0:00:11.2]} 37. Qe5+ {[%clk 0:00:26.2]}
37... Qxe5 {[%clk 0:00:10.8]} 38. Rxe5 {[%clk 0:00:27.1]} 38... Kf6 {[%clk
0:00:09.5]} 39. Rb5 {[%clk 0:00:27.2]} 39... Ke6 {[%clk 0:00:09.8]} 40. Kf3
{[%clk 0:00:27.6]} 40... b6 {[%clk 0:00:09]} 41. Ke4 {[%clk 0:00:23.8]} 41...
f5+ {[%clk 0:00:09]} 42. Kd4 {[%clk 0:00:23]} 42... Kd6 {[%clk 0:00:09.2]} 43.
Kc4 {[%clk 0:00:21.7]} 43... Rc8+ {[%clk 0:00:08.6]} 44. Kd4 {[%clk 0:00:22]}
44... Kc6 {[%clk 0:00:08.8]} 45. Re5 {[%clk 0:00:22.1]} 45... Rd8+ {[%clk
0:00:09.3]} 46. Kc4 {[%clk 0:00:22.4]} 46... Rd6 {[%clk 0:00:09.7]} 47. b5+
{[%clk 0:00:21.9]} 47... Kd7 {[%clk 0:00:10.1]} 48. Rd5 {[%clk 0:00:17.1]} 48...
Kc7 {[%clk 0:00:10]} 49. Re5 {[%clk 0:00:10.9]} 49... Rd1 {[%clk 0:00:07.1]} 50.
Re7+ {[%clk 0:00:09.3]} 50... Kd8 {[%clk 0:00:04.4]} 51. Rb7 {[%clk 0:00:07.2]}
51... Re1 {[%clk 0:00:04]} 52. Kd4 {[%clk 0:00:06.9]} 52... Rd1+ {[%clk
0:00:04.1]} 53. Ke5 {[%clk 0:00:07.2]} 53... Rh1 {[%clk 0:00:02.9]} 54. Rxb6
{[%clk 0:00:06.9]} 54... Rxh4 {[%clk 0:00:03.4]} 55. Rxg6 {[%clk 0:00:07.4]}
55... Rh3 {[%clk 0:00:03.2]} 56. Kd4 {[%clk 0:00:07.6]} 56... h4 {[%clk
0:00:03.3]} 57. Rh6 {[%clk 0:00:08.1]} 57... Kc7 {[%clk 0:00:03.6]} 58. Rh5
{[%clk 0:00:05.6]} 58... Rh1 {[%clk 0:00:04.5]} 59. Rxf5 {[%clk 0:00:05.3]}
59... h3 {[%clk 0:00:04.6]} 60. Rh5 {[%clk 0:00:05.6]} 60... h2 {[%clk
0:00:05.1]} 61. Ke5 {[%clk 0:00:05.6]} 61... Re1 {[%clk 0:00:03.7]} 62. Rxh2
{[%clk 0:00:02.9]} 62... Rxe3+ {[%clk 0:00:04.2]} 63. Kf6 {[%clk 0:00:02.8]}
63... Rb3 {[%clk 0:00:02.8]} 64. f5 {[%clk 0:00:02.4]} 64... Kd7 {[%clk
0:00:02.4]} 65. Rd2+ {[%clk 0:00:02.2]} 65... Ke8 {[%clk 0:00:02.3]} 66. Kg7
{[%clk 0:00:02.6]} 66... Rg3+ {[%clk 0:00:02.5]} 67. Kf6 {[%clk 0:00:02.8]}
67... Rb3 {[%clk 0:00:03.2]} 68. Rd5 {[%clk 0:00:02.8]} 68... Kf8 {[%clk
0:00:03.7]} 69. Re5 {[%clk 0:00:03.2]} 69... Rb4 {[%clk 0:00:03.8]} 70. Rc5
{[%clk 0:00:03.7]} 70... Ke8 {[%clk 0:00:03.3]} 71. Ke6 {[%clk 0:00:03.9]} 71...
Re4+ {[%clk 0:00:03.3]} 72. Kd5 {[%clk 0:00:04.1]} 72... Rb4 {[%clk 0:00:04.2]}
73. Ke5 {[%clk 0:00:04.5]} 73... Ke7 {[%clk 0:00:04.4]} 74. f6+ {[%clk
0:00:04.7]} 74... Kd7 {[%clk 0:00:04]} 75. Kf5 {[%clk 0:00:02.9]} 75... Ke8
{[%clk 0:00:04.3]} 76. Ke6 {[%clk 0:00:02.2]} 76... Re4+ {[%clk 0:00:04.5]} 77.
Re5 {[%clk 0:00:02.8]} 77... Rb4 {[%clk 0:00:04.1]} 78. Rc5 {[%clk 0:00:02.9]}
78... Re4+ {[%clk 0:00:03.6]} 79. Kf5 {[%clk 0:00:03.4]} 79... Rb4 {[%clk
0:00:03.8]} 80. Kg6 {[%clk 0:00:03.9]} 80... Rg4+ {[%clk 0:00:04]} 81. Rg5
{[%clk 0:00:04.6]} 81... Rb4 {[%clk 0:00:04.9]} 82. Re5+ {[%clk 0:00:03]} 82...
Kf8 {[%clk 0:00:04.7]} 83. Rc5 {[%clk 0:00:03.6]} 83... Rg4+ {[%clk 0:00:02.8]}
84. Kf5 {[%clk 0:00:04.1]} 84... Rb4 {[%clk 0:00:03.2]} 85. Ke6 {[%clk
0:00:04.6]} 85... Re4+ {[%clk 0:00:02.8]} 86. Kd5 {[%clk 0:00:05.1]} 86... Rb4
{[%clk 0:00:02.7]} 87. Kc6 {[%clk 0:00:05]} 87... Kf7 {[%clk 0:00:02.8]} 88. b6
{[%clk 0:00:05.3]} 88... Kxf6 {[%clk 0:00:02.1]} 89. b7 {[%clk 0:00:05.8]} 89...
Ke7 {[%clk 0:00:03]} 90. Kc7 {[%clk 0:00:06.3]} 90... Rb5 {[%clk 0:00:01.7]} 91.
Rxb5 {[%clk 0:00:05.9]} 1-0